bitfinex-derivatives/quotes_BNBF0:USTF0_20250112
["timestamp","ask_amount","ask_price","bid_price","bid_amount"]
[1736644528205,0.26369211,697.35,696.06,0.28733155]
[1736644528407,0.28679591,697.36,696.06,0.28733155]
[1736644528607,0.26369621,697.35,696.06,0.28733155]
[1736644528807,0.28680414,697.34,696.06,0.28733155]
[1736644529006,0.26369621,697.33,696.06,0.28733155]
[1736644529202,0.28680414,697.34,696.06,0.28733155]
[1736644529503,0.26370115,697.33,696.06,0.28733155]
[1736644529702,0.28681236,697.32,696.06,0.28733155]
[1736644531810,0.26370461,697.31,696.06,0.28733155]
[1736644532112,0.28681236,697.32,696.06,0.28733155]
[1736644532408,0.26372586,697.31,696.06,0.28733155]
[1736644533110,0.28682059,697.3,696.06,0.28733155]
[1736644533313,0.26372586,697.29,696.06,0.28733155]
[1736644533611,0.28682882,697.28,696.06,0.28733155]
[1736644534409,0.26372719,697.27,696.06,0.28733155]
[1736644534612,0.28683704,697.26,696.06,0.28733155]
[1736644534811,0.26372719,697.25,696.06,0.28733155]
[1736644535009,0.28684527,697.24,696.06,0.28733155]
[1736644536714,0.26373042,697.23,696.06,0.28733155]
[1736644537106,0.26374413,697.22,696.06,0.28733155]
[1736644537310,0.26374413,697.21,695.71,1.28423773]
[1736644537516,0.26374413,697.2,695.71,1.28423773]
[1736644537814,0.28686584,697.19,695.71,1.28423773]
[1736644538309,0.28686584,697.19,695.72,0.28747197]
[1736644539111,0.28686584,697.19,695.73,1.28423773]
[1736644539309,0.28686584,697.19,695.74,0.2874637]
[1736644540115,0.28686584,697.19,695.75,1.28423773]
[1736644541014,0.28686584,697.19,695.76,0.28745544]
[1736644541215,0.28686584,697.19,695.78,1.28423773]
[1736644542114,0.28686584,697.19,695.82,1.28423773]
[1736644542715,0.28686584,697.19,695.82,1.57166838]
[1736644543315,0.28686584,697.19,695.84,1.28423773]
[1736644544715,0.28686584,697.19,695.85,1.28423773]
[1736644545314,0.28686584,697.19,695.86,0.28741413]
[1736644545517,0.28686584,697.19,695.87,1.28423773]
[1736644545717,0.28686584,697.19,695.88,0.28740587]
[1736644546418,0.28686584,697.19,695.89,1.28423773]
[1736644547317,0.28686584,697.19,695.88,0.28740587]
[1736644547318,0.28686584,697.19,695.91,1.28423773]
[1736644548118,0.28686584,697.19,695.93,1.28423773]
[1736644549921,0.28686584,697.19,696.0,1.28423773]
[1736644550715,0.28686584,697.19,695.98,1.28423773]
[1736644551817,0.28686584,697.19,695.99,1.28423773]
[1736644552723,0.28686584,697.19,695.98,1.28423773]
[1736644554818,0.28686584,697.19,695.98,2.74023922]
[1736644555723,0.28686584,697.19,695.98,5.78338189]
[1736644555923,0.28686584,697.19,695.99,2.74023922]
[1736644557326,0.28686584,697.19,695.99,5.78338189]
[1736644557618,0.28686584,697.19,696.0,2.74023922]
[1736644559626,0.28686584,697.19,695.98,2.74023922]
[1736644559828,0.28686584,697.19,696.02,1.28423773]
[1736644561028,0.28686584,697.19,696.01,1.28423773]
[1736644561832,0.28686584,697.19,696.0,2.74023922]
[1736644562832,0.28686584,697.19,695.97,2.74023922]
[1736644564225,0.28686584,697.19,695.97,5.78338189]
[1736644564434,0.28686584,697.19,695.98,2.74023922]
[1736644566330,0.28686584,697.19,695.93,2.74023922]
[1736644568032,0.28686584,697.19,695.88,0.28740587]
[1736644570438,0.28686584,697.19,695.88,1.5716436]
[1736644571136,0.28686584,697.19,695.93,1.28423773]
[1736644572039,0.28686584,697.19,695.95,1.28423773]
[1736644573334,0.28686584,697.19,695.88,0.28740587]
[1736644574140,0.28686584,697.19,695.88,2.09894821]
[1736644574635,0.28686584,697.19,695.88,3.02775959]
[1736644574841,0.28686584,697.19,695.88,2.09894821]
[1736644575039,0.28686584,697.19,695.88,0.28740587]
[1736644577445,0.28686584,697.19,695.88,1.5716436]
[1736644579148,0.28686584,697.19,695.88,0.28740587]
[1736644579942,0.28686584,697.19,695.88,1.5716436]
[1736644581951,0.28686584,697.19,695.88,0.28740587]
[1736644582948,0.28686584,697.19,695.99,1.28423773]
[1736644584544,0.28686584,697.19,696.0,1.28423773]
[1736644585549,0.28686584,697.19,695.98,1.28423773]
[1736644586349,0.28686584,697.19,696.08,1.28423773]
[1736644587348,0.28686584,697.19,695.99,2.74038119]
[1736644587349,0.28686584,697.19,696.1,1.28423773]
[1736644588051,0.28686584,697.19,696.0,5.78352386]
[1736644588052,0.28686584,697.19,696.01,2.74038119]
[1736644588645,0.28686584,697.19,696.01,1.81154234]
[1736644588844,0.28686584,697.19,696.0,3.04314267]
[1736644589052,0.28686584,697.19,696.01,0.28735219]
[1736644608271,0.28686584,697.19,696.04,1.28423773]
[1736644610265,0.28686584,697.19,696.05,1.28423773]
[1736644611372,0.28686584,697.19,696.01,3.02653616]
[1736644611373,0.28686584,697.19,696.03,1.28423773]
[1736644612170,0.28686584,697.19,696.1,1.28423773]
[1736644613067,0.28686584,697.19,696.09,1.28423773]
[1736644615072,0.28686584,697.19,696.08,1.28423773]
[1736644617168,0.28686584,697.19,696.01,0.28735219]
[1736644645899,1.35802511,697.19,696.01,0.28735219]
[1736644646699,0.28686584,697.19,696.01,0.28735219]
[1736644650399,0.28681648,697.31,696.01,0.28735219]
[1736644650701,1.35797575,697.31,696.01,0.28735219]
[1736644651297,1.07115927,697.26,696.01,0.28735219]
[1736644651504,0.28684116,697.25,696.01,0.28735219]
[1736644655703,0.26375326,697.24,696.01,0.28735219]
[1736644655902,0.28684938,697.23,696.01,0.28735219]
[1736644656102,0.26375326,697.22,696.01,0.28735219]
[1736644656296,0.28685761,697.21,696.01,0.28735219]
[1736644656501,1.07115927,697.13,696.01,0.28735219]
[1736644657403,1.07115927,697.11,696.01,0.28735219]
[1736644659404,1.07115927,697.1,696.01,0.28735219]
[1736644660405,1.07115927,697.06,696.01,0.28735219]
[1736644661504,1.07115927,697.07,696.01,0.28735219]
[1736644662105,1.07115927,697.07,695.76,1.28423773]
[1736644662305,1.35807861,697.06,695.79,1.28423773]
[1736644662501,0.28692346,697.05,695.79,1.28423773]
[1736644663305,1.07115927,697.03,695.74,3.04458853]
[1736644663506,1.07115927,697.03,695.74,4.85236328]
[1736644663706,1.07115927,697.03,695.75,1.80777475]
[1736644663907,1.07115927,697.03,695.75,1.81038668]
[1736644664102,0.28692346,697.05,695.75,1.81038668]
[1736644664301,0.26381217,697.04,695.75,1.81038668]
[1736644664808,0.26381217,697.04,695.74,1.28423773]
[1736644665502,1.07115927,697.03,695.68,4.02338867]
[1736644665706,0.26381217,697.02,695.68,4.02338867]
[1736644666409,0.26381217,697.02,695.68,2.73915094]
[1736644666606,0.26381217,697.01,695.68,2.73915094]
[1736644666807,1.35808273,697.05,695.68,2.73915094]
[1736644667104,0.26381823,697.04,695.68,2.73915094]
[1736644667302,0.28693169,697.03,695.67,2.73915094]
[1736644667508,0.26381823,697.02,695.67,2.73915094]
[1736644668003,0.28693992,697.01,695.67,2.73915094]
[1736644668409,0.28693992,697.01,695.65,2.73915094]
[1736644670314,0.28693992,697.01,695.62,2.73915094]
[1736644673310,0.28693992,697.01,695.56,2.73915094]
[1736644675014,0.28693992,697.01,695.55,2.73915094]
[1736644678724,0.28693992,697.01,695.62,1.28423773]
[1736644679717,0.28693992,697.01,695.61,1.28423773]
[1736644680825,0.28693992,697.01,695.6,1.28423773]
[1736644681624,0.28693992,697.01,695.62,1.28423773]
[1736644682624,0.28693992,697.01,695.59,2.73852496]
[1736644683024,0.28693992,697.01,695.54,2.73852496]
[1736644683626,0.28693992,697.01,695.59,1.28423773]
[1736644685428,0.28693992,697.01,695.6,1.28423773]
[1736644686526,0.28693992,697.01,695.58,2.73852496]
[1736644687622,0.28693992,697.01,695.53,2.73852496]
[1736644689129,0.28693992,697.01,695.51,2.73852496]
[1736644690832,0.28693992,697.01,695.53,0.2875505]
[1736644692533,0.28693992,697.01,695.62,1.28423773]
[1736644693338,0.28693992,697.01,695.63,0.28750916]
[1736644694539,0.28693992,697.01,695.71,1.28423773]
[1736644696341,0.28693992,697.01,695.71,1.57171383]
[1736644700043,0.28693992,697.01,695.71,0.2874761]
[1736644700944,0.28693992,697.01,695.71,3.33206463]
[1736644701146,0.28693992,697.01,695.71,6.07058959]
[1736644701344,0.28693992,697.01,695.72,2.73852496]
[1736644701547,0.28693992,697.01,695.8,1.28423773]
[1736644702246,0.28693992,697.01,695.82,1.28423773]
[1736644704245,0.28693992,697.01,695.84,1.28423773]
[1736644705349,0.28693992,697.01,695.78,2.73852496]
[1736644707852,0.28693992,697.01,695.78,4.02276269]
[1736644708053,0.28693992,697.01,695.79,2.73852496]
[1736644708247,0.28693992,697.01,695.79,1.81038668]
[1736644708446,0.28693992,697.01,695.78,1.28423773]
[1736644708846,0.28693992,697.01,695.76,2.73852496]
[1736644713957,0.28693992,697.01,695.77,1.28423773]
[1736644714151,0.28693992,697.01,695.77,2.21237601]
[1736644714353,0.28693992,697.01,695.77,1.28423773]
[1736644714751,0.28693992,697.01,695.74,2.73852496]
[1736644714752,0.28693992,697.01,695.79,1.28423773]
[1736644715756,0.28693992,697.01,695.82,1.28423773]
[1736644717359,1.07115927,697.0,695.78,2.73852496]
[1736644718158,0.28693992,697.01,695.78,2.73852496]
[1736644718358,0.28693992,697.01,695.76,2.73852496]
[1736644719360,0.28693992,697.01,695.76,4.02276269]
[1736644720060,1.07115927,697.0,695.76,2.73852496]
[1736644721059,0.28693992,697.01,695.73,2.73852496]
[1736644724058,0.28693992,697.01,695.72,2.73852496]
[1736644724257,0.28693992,697.01,695.78,1.28423773]
[1736644725258,0.28693992,697.01,695.77,1.28423773]
[1736644725861,0.28693992,697.01,695.85,1.28423773]
[1736644726865,0.28693992,697.01,695.87,1.28423773]
[1736644727663,0.28693992,697.01,695.78,2.73852496]
[1736644727664,0.28693992,697.01,695.94,1.28423773]
[1736644728765,0.28693992,697.01,695.86,2.73852496]
[1736644728766,0.28693992,697.01,695.87,1.28423773]
[1736644729666,0.28693992,697.01,695.91,1.28423773]
[1736644732568,0.28693992,697.01,695.9,2.73852496]
[1736644733471,0.28693992,697.01,695.85,2.73852496]
[1736644736674,0.28693992,697.01,695.8,2.73852496]
[1736644736874,1.07115927,696.99,695.8,2.73852496]
[1736644737573,1.07115927,696.99,695.8,1.81038668]
[1736644737966,1.07115927,696.99,695.8,2.74155201]
[1736644738170,1.07115927,696.98,695.8,2.74155201]
[1736644738370,1.07115927,696.98,695.71,0.2874761]
[1736644739067,0.28695639,696.97,695.71,0.2874761]
[1736644765696,1.35811566,696.97,695.71,0.2874761]
[1736644766993,1.07115927,696.94,695.71,0.2874761]
[1736644768096,1.07115927,696.92,695.71,0.2874761]
[1736644769003,0.28695639,696.97,695.72,1.28423773]
[1736644769801,1.07115927,696.93,695.71,1.57171383]
[1736644770197,0.28697698,696.92,695.71,1.57171383]
[1736644771306,0.28697698,696.92,695.73,1.28423773]
[1736644772301,1.35813625,696.92,695.74,1.28423773]
[1736644774207,1.35813625,696.92,695.73,1.28423773]
[1736644776708,1.07115927,696.86,695.73,4.32882626]
[1736644777010,1.07115927,696.86,695.74,2.74155201]
[1736644778313,1.07115927,696.86,695.71,0.2874761]
[1736644778613,1.07115927,696.85,695.71,0.2874761]
[1736644784418,1.07115927,696.9,695.71,0.2874761]
[1736644785420,1.35813625,696.92,695.71,0.2874761]
[1736644786322,1.07115927,696.9,695.71,0.2874761]
[1736644786521,0.28698933,696.89,695.71,0.2874761]
[1736644787322,1.07115927,696.88,695.71,0.2874761]
[1736644787518,0.28699757,696.87,695.71,0.2874761]
[1736644790625,0.28699757,696.87,695.23,1.28423773]
[1736644790826,0.28699757,696.87,695.24,1.57190817]
[1736644791026,0.28699757,696.87,695.25,0.2876663]
[1736644792825,0.28699757,696.87,695.29,1.28423773]
[1736644793026,0.28699757,696.87,695.3,0.28764562]
[1736644797435,0.28699757,696.87,695.46,1.28423773]
[1736644798735,0.28699757,696.87,695.47,1.28423773]
[1736644799637,1.07115927,696.86,695.58,1.28423773]
[1736644799837,0.28700581,696.85,695.58,1.28423773]
[1736644800440,0.28700581,696.85,695.59,1.28423773]
[1736644801234,0.28700581,696.85,695.58,1.28423773]
[1736644803240,0.27540788,696.85,695.58,1.28423773]
[1736644804646,1.07115927,696.83,695.57,2.7444811]
[1736644804838,0.28701816,696.82,695.57,2.7444811]
[1736644806849,0.28701816,696.82,695.57,4.02871883]
[1736644807550,0.28701816,696.82,695.58,3.05282651]
[1736644807751,0.28701816,696.82,695.58,5.79730761]
[1736644807947,0.28701816,696.82,695.59,2.7444811]
[1736644808553,0.28701816,696.82,695.6,1.28423773]
[1736644808854,0.28701816,696.82,695.6,4.33706424]
[1736644809046,0.28701816,696.82,695.61,2.7444811]
[1736644809953,0.28701816,696.82,695.61,5.79730761]
[1736644810156,0.28701816,696.82,695.62,2.7444811]
[1736644811457,0.28701816,696.82,695.62,5.79730761]
[1736644811661,0.28701816,696.82,695.63,2.7444811]
[1736644812258,0.28701816,696.82,695.62,3.05282651]
[1736644812657,0.28701816,696.82,695.38,3.05282651]
[1736644813357,0.28701816,696.82,695.39,0.28760839]
[1736644822458,0.28701816,696.82,695.55,1.28423773]
[1736644823466,0.28701816,696.82,695.57,1.28423773]
[1736644824263,0.28701816,696.82,695.56,1.28423773]
[1736644825469,0.28701816,696.82,695.6,1.28423773]
[1736644826268,0.28701816,696.82,695.62,1.28423773]
[1736644827067,0.28701816,696.82,695.61,1.28423773]
[1736644828165,0.28701816,696.82,695.64,1.28423773]
[1736644829068,0.28701816,696.82,695.65,1.28423773]
[1736644829870,1.07115927,696.76,695.59,2.74465713]
[1736644830774,0.28701816,696.82,695.59,2.74465713]
[1736644830775,1.07115927,696.75,695.59,2.74465713]
[1736644831075,1.07115927,696.75,695.55,2.74465713]
[1736644831873,1.07115927,696.77,695.55,2.74465713]
[1736644832073,1.07115927,696.77,695.54,2.74465713]
[1736644832971,1.07115927,696.77,695.54,5.79748364]
[1736644833173,1.07115927,696.77,695.55,2.74465713]
[1736644835269,1.07115927,696.77,695.55,5.79748364]
[1736644835472,1.07115927,696.77,695.56,2.74465713]
[1736644836870,1.07115927,696.77,695.56,5.79748364]
[1736644837073,1.07115927,696.77,695.57,2.74465713]
[1736644838676,1.07115927,696.77,695.55,3.05282651]
[1736644838677,1.07115927,696.77,695.56,2.74465713]
[1736644839476,1.07115927,696.78,695.56,2.74465713]
[1736644839781,1.07115927,696.78,695.55,4.33706424]
[1736644840179,1.07115927,696.78,695.55,1.28423773]
[1736644840580,0.28701816,696.82,694.79,1.28423773]
[1736644841780,0.28701816,696.82,694.62,1.81589735]
[1736644841980,0.28701816,696.82,694.62,0.93005528]
[1736644842180,0.28701816,696.82,694.61,2.74595263]
[1736644842381,0.28701816,696.82,694.6,2.74595263]
[1736644842582,0.28701816,696.82,694.6,0.93005528]
[1736644842783,0.28701816,696.82,694.61,1.28423773]
[1736644843584,0.28701816,696.82,695.03,1.28423773]
[1736644844682,0.28701816,696.82,695.14,1.28423773]
[1736644845380,0.28701816,696.82,695.12,1.28423773]
[1736644847379,0.28701816,696.82,695.14,1.28423773]
[1736644848387,0.28701816,696.82,695.13,1.28423773]
[1736644849483,0.28701816,696.82,695.15,1.28423773]
[1736644850680,0.28701816,696.82,695.17,1.28423773]
[1736644851887,1.07115927,696.81,695.28,1.28423773]
[1736644852087,0.2870264,696.8,695.28,1.28423773]
[1736644852887,1.07115927,696.75,695.2,1.28423773]
[1736644853588,1.07115927,696.75,695.2,6.15645013]
[1736644853789,1.07115927,696.75,695.21,2.74595263]
[1736644854989,1.35818567,696.8,695.21,4.03019036]
[1736644855188,0.28703052,696.79,695.21,4.03019036]
[1736644855490,0.28703052,696.79,695.22,3.05631505]
[1736644855690,0.28703052,696.79,695.22,5.80226768]
[1736644855891,0.28703052,696.79,695.23,2.74595263]
[1736644856489,0.28703052,696.79,695.24,1.28423773]
[1736644857490,1.07115927,696.78,695.24,3.05631505]
[1736644857691,1.07115927,696.78,695.24,5.80226768]
[1736644857891,1.07115927,696.78,695.25,2.74595263]
[1736644858592,0.28703052,696.79,695.25,4.03019036]
[1736644858785,0.26390342,696.78,695.25,4.03019036]
[1736644858990,0.26390342,696.78,695.26,3.05631505]
[1736644859190,0.26390342,696.78,695.26,5.80226768]
[1736644859391,0.28703876,696.77,695.27,2.74595263]
[1736644859591,0.28703876,696.77,695.46,1.28423773]
[1736644860691,0.28703876,696.77,695.47,1.28423773]
[1736644861589,0.26390809,696.76,695.47,1.28423773]
[1736644861991,0.287047,696.75,695.47,1.28423773]
[1736644862195,0.26390809,696.74,695.47,1.28423773]
[1736644862495,0.28705524,696.73,695.47,1.28423773]
[1736644862691,0.28705524,696.73,695.42,4.03019036]
[1736644862895,0.28705524,696.73,695.43,3.05631505]
[1736644864695,0.28705524,696.73,695.42,1.28423773]
[1736644864998,0.28705524,696.73,695.39,0.28760839]
[1736644873807,1.07115927,696.69,695.39,0.28760839]
[1736644874200,0.28707584,696.68,695.39,0.28760839]
[1736644875001,1.07115927,696.67,695.39,0.28760839]
[1736644875404,0.28708408,696.66,695.39,0.28760839]
[1736644875803,1.35824335,696.66,695.39,0.28760839]
[1736644876804,1.07115927,696.63,695.39,0.28760839]
[1736644877005,1.35825572,696.63,695.39,0.28760839]
[1736644877701,1.07115927,696.62,695.39,0.28760839]
[1736644878601,1.07115927,696.61,695.39,0.28760839]
[1736644881003,1.07115927,696.59,695.39,0.28760839]
[1736644882105,0.28709645,696.63,695.43,1.28423773]
[1736644882808,0.28709645,696.63,695.39,0.28760839]
[1736644882809,0.28709645,696.63,695.4,1.28423773]
[1736644884111,0.28709645,696.63,695.39,0.28760839]
[1736644893621,1.07115927,696.59,695.39,0.28760839]
[1736644894216,1.07115927,696.58,695.39,1.57184612]
[1736644895320,1.07115927,696.58,695.4,1.28423773]
[1736644896123,1.07115927,696.57,695.4,1.28423773]
[1736644897524,0.28709645,696.63,695.43,1.28423773]
[1736644899219,0.28709645,696.63,695.39,0.28760839]
[1736644899220,0.28709645,696.63,695.42,1.28423773]
[1736644900922,0.28709645,696.63,695.39,0.28760839]
[1736644900923,0.28709645,696.63,695.43,1.28423773]
[1736644901923,0.28709645,696.63,695.45,1.28423773]
[1736644902825,0.28709645,696.63,695.46,1.28423773]
[1736644904427,0.28709645,696.63,695.47,1.28423773]
[1736644905426,1.07115927,696.6,695.46,2.74405034]
[1736644906127,1.07115927,696.6,695.39,0.28760839]
[1736644907526,0.28711293,696.59,695.39,0.28760839]
[1736644908029,1.07115927,696.58,695.38,1.28423773]
[1736644908429,0.28712117,696.57,695.38,1.28423773]
[1736644908830,0.28712117,696.57,695.14,3.05631505]
[1736644909331,0.2640267,696.56,695.03,2.74986717]
[1736644909523,0.28713354,696.54,695.02,1.8185074]
[1736644909726,0.28713354,696.54,695.01,1.28423773]
[1736644910126,1.07115927,696.34,695.13,1.28423773]
[1736644911231,0.28713354,696.54,694.91,3.05631505]
[1736644911430,0.28713354,696.54,694.92,0.28780291]
[1736644912227,0.28713354,696.54,695.21,1.28423773]
[1736644913032,0.28713354,696.54,694.92,0.28780291]
[1736644913033,0.28713354,696.54,694.99,1.81603752]
[1736644913235,0.28713354,696.54,695.0,0.28776978]
[1736644921037,0.28713354,696.54,695.11,1.28423773]
[1736644922737,0.28713354,696.54,695.1,1.28423773]
[1736644923239,0.28713354,696.54,695.11,0.28772424]
[1736644926536,0.28713354,696.54,695.19,1.28423773]
[1736644926736,0.28713354,696.54,695.2,0.28768699]
[1736644927541,0.28713354,696.54,695.24,1.28423773]
[1736644928641,0.28713354,696.54,695.25,1.28423773]
[1736644929536,0.28713354,696.54,695.22,1.28423773]
[1736644930443,0.28713354,696.54,695.3,1.28423773]
[1736644931345,0.28713354,696.54,695.29,1.28423773]
[1736644932349,0.28713354,696.54,695.28,1.28423773]
[1736644934545,0.28713354,696.54,695.4,1.28423773]
[1736644935445,0.28713354,696.54,695.39,1.28423773]
[1736644937951,0.28713354,696.54,695.38,1.28423773]
[1736644938852,0.28713354,696.54,695.39,1.28423773]
[1736644940049,0.28713354,696.54,695.39,4.34055278]
[1736644940251,0.28713354,696.54,695.4,2.74572799]
[1736644941253,0.28713354,696.54,695.4,4.87235257]
[1736644942051,0.28713354,696.54,695.41,1.81603752]
[1736644942452,0.28713354,696.54,695.4,3.05631505]
[1736644942952,0.28713354,696.54,695.24,1.81603752]
[1736644943152,0.28713354,696.54,695.11,2.74484786]
[1736644944453,0.28713354,696.54,695.18,1.28423773]
[1736644945354,0.28713354,696.54,695.22,1.28423773]
[1736644946352,0.28713354,696.54,695.24,1.28423773]
[1736644947456,0.28713354,696.54,695.26,1.28423773]
[1736644948557,0.28713354,696.54,695.2,3.03253485]
[1736644949352,0.28713354,696.54,695.2,0.28768699]
[1736644955160,0.26402539,696.53,695.2,0.28768699]
[1736644956062,0.28714179,696.52,695.2,0.28768699]
[1736644957363,0.28714179,696.52,694.92,1.28423773]
[1736644958260,0.26407003,696.51,694.83,2.74453172]
[1736644958459,0.28714179,696.52,694.83,2.74453172]
[1736644959564,0.28714179,696.52,694.65,2.74453172]
[1736644959764,0.28714179,696.52,694.66,0.28791063]
[1736644965470,0.26406298,696.51,694.66,0.28791063]
[1736644965672,0.28715415,696.49,694.66,0.28791063]
[1736644966673,0.26406605,696.48,694.66,0.28791063]
[1736644966875,0.28716652,696.46,694.66,0.28791063]
[1736644967070,0.26406605,696.45,694.66,0.28791063]
[1736644967271,0.28717889,696.43,694.66,0.28791063]
[1736644967468,0.26406605,696.42,694.66,0.28791063]
[1736644967667,0.28719126,696.4,694.66,0.28791063]
[1736644967873,0.26406605,696.39,694.66,0.28791063]
[1736644968068,0.28720364,696.37,694.66,0.28791063]
[1736644970777,0.26412031,696.36,694.66,0.28791063]
[1736644970979,0.28721601,696.34,694.66,0.28791063]
[1736644971179,0.26410743,696.33,694.66,0.28791063]
[1736644971379,0.28722838,696.31,694.66,0.28791063]
[1736644977379,0.2640997,696.3,694.66,0.28791063]
[1736644977581,0.28723663,696.29,694.66,0.28791063]
[1736644977782,0.2640997,696.28,694.66,0.28791063]
[1736644977975,0.28724489,696.27,694.66,0.28791063]
[1736644978177,0.2640997,696.26,694.66,0.28791063]
[1736644978376,0.28725314,696.25,694.66,0.28791063]
[1736644978583,0.2640997,696.24,694.66,0.28791063]
[1736644978787,0.28726139,696.23,694.66,0.28791063]
[1736644979085,0.26410047,696.22,694.66,0.28791063]
[1736644979384,0.28726964,696.21,694.66,0.28791063]
[1736644987083,0.28726964,696.21,694.69,1.28423773]
[1736644987283,0.28726964,696.21,694.7,0.28789405]
[1736644988291,0.28726964,696.21,694.73,1.28423773]
[1736644988491,0.28726964,696.21,694.73,1.57211935]
[1736644989592,0.28726964,696.21,694.76,1.28423773]
[1736644990591,0.28726964,696.21,694.81,1.28423773]
[1736644991688,0.28726964,696.21,694.84,1.28423773]
[1736644992693,0.28726964,696.21,694.87,1.28423773]
[1736644994790,0.28726964,696.21,694.82,2.73474567]
[1736644995094,0.28726964,696.21,694.83,0.28784019]
[1736644995896,0.28726964,696.21,694.85,1.28423773]
[1736644996095,0.28726964,696.21,694.86,0.28782776]
[1736644997695,0.28726964,696.21,694.87,1.28423773]
[1736644997891,0.28726964,696.21,694.88,0.28781947]
[1736645001100,0.28726964,696.21,694.88,1.5720572]
[1736645001298,0.28726964,696.21,694.88,4.30680287]
[1736645001998,0.28726964,696.21,694.99,1.28423773]
[1736645003400,0.28726964,696.21,695.0,1.28423773]
[1736645004296,0.28726964,696.21,694.99,1.28423773]
[1736645005199,0.28726964,696.21,695.0,0.28776978]
[1736645005594,0.28726964,696.21,695.02,1.28423773]
[1736645006098,0.28726964,696.21,695.03,0.28775736]
[1736645006697,0.28726964,696.21,695.03,1.57199509]
[1736645008697,0.28726964,696.21,695.06,1.28423773]
[1736645010202,0.28726964,696.21,695.03,0.28775736]
[1736645022602,0.28726964,696.21,695.03,3.02250303]
[1736645023005,0.28726964,696.21,695.03,4.30674076]
[1736645023807,0.28726964,696.21,695.05,1.28423773]
[1736645024012,0.28726964,696.21,695.06,0.28774494]
[1736645024812,0.28726964,696.21,695.06,1.57198267]
[1736645025812,0.28726964,696.21,695.16,1.28423773]
[1736645026709,0.28726964,696.21,695.18,1.28423773]
[1736645027512,0.28726964,696.21,695.21,1.28423773]
[1736645028309,0.28726964,696.21,695.11,2.18498781]
[1736645028514,1.50001078,696.9,695.1,3.05631505]
[1736645028817,0.28699345,696.88,695.06,0.28774494]
[1736645033910,1.07115927,697.01,694.67,1.28423773]
[1736645034718,1.07115927,697.01,694.56,2.73215848]
[1736645034719,1.07115927,696.97,694.71,1.28423773]
[1736645035813,1.07115927,696.99,694.72,1.28423773]
[1736645037016,1.07115927,697.0,694.71,1.28423773]
[1736645037618,0.26391331,696.99,694.71,1.28423773]
[1736645038120,1.07115927,696.81,695.15,1.28423773]
[1736645038618,0.26392873,696.8,695.15,1.28423773]
[1736645039510,1.07115927,696.75,695.14,1.28423773]
[1736645039919,0.26393753,696.74,695.14,1.28423773]
[1736645040413,1.07115927,696.72,695.16,1.28423773]
[1736645041518,1.07115927,696.71,695.24,1.28423773]
[1736645043316,1.07115927,696.74,695.17,1.80703418]
[1736645044020,0.26396794,696.73,695.02,1.28423773]
[1736645044221,1.07115927,696.72,695.01,1.28423773]
[1736645045217,1.07115927,696.7,695.01,1.28423773]
[1736645046119,1.07115927,696.71,695.0,1.28423773]
[1736645047122,1.07115927,696.72,695.01,1.28423773]
[1736645047621,0.2639723,696.71,695.01,1.28423773]
[1736645047816,1.07115927,696.72,695.01,1.28423773]
[1736645048020,1.07115927,696.69,694.98,3.05631505]
[1736645048220,1.07115927,696.69,694.98,5.78920003]
[1736645048416,1.07115927,696.69,694.99,2.73288498]
[1736645050224,1.07115927,696.68,694.99,2.73288498]
[1736645051023,0.26399356,696.67,694.99,2.73288498]
[1736645051425,1.07115927,696.68,694.98,2.73288498]
[1736645051626,1.07115927,696.65,694.98,2.73288498]
[1736645052524,0.2639925,696.64,694.98,2.73288498]
[1736645052923,0.2639925,696.64,694.94,2.73288498]
[1736645053426,1.07115927,696.58,695.1,1.28423773]
[1736645053628,0.2639925,696.57,695.1,1.28423773]
[1736645054023,1.07115927,696.58,695.1,1.28423773]
[1736645054224,0.26399746,696.57,695.1,1.28423773]
[1736645054624,0.26399272,696.56,695.09,1.28423773]
[1736645054819,0.26399272,696.55,695.09,1.28423773]
[1736645055023,1.07115927,696.58,695.09,1.28423773]
[1736645055221,0.26399256,696.57,695.09,1.28423773]
[1736645055922,0.26399256,696.56,695.09,1.28423773]
[1736645056123,0.26399256,696.55,695.09,1.28423773]
[1736645056432,0.26399415,696.54,695.09,1.28423773]
[1736645056625,1.07115927,696.59,695.08,1.28423773]
[1736645056825,0.26399579,696.58,695.08,1.28423773]
[1736645057730,0.26399579,696.58,695.07,1.28423773]
[1736645058626,0.26399579,696.58,695.09,1.28423773]
[1736645058931,0.26399579,696.57,695.09,1.28423773]
[1736645059133,0.26399579,696.56,695.09,1.28423773]
[1736645059327,1.07115927,696.62,695.09,1.28423773]
[1736645059632,1.33515274,696.61,695.08,4.01712271]
[1736645059829,0.26399347,696.6,695.08,4.01712271]
[1736645060233,0.26399347,696.6,695.09,3.05631505]
[1736645060433,0.26399347,696.6,695.09,5.78920003]
[1736645060734,0.26399347,696.6,695.1,2.73288498]
[1736645061333,1.07115927,696.62,695.1,2.73288498]
[1736645061534,0.26399442,696.61,695.1,2.73288498]
[1736645061930,0.26399442,696.61,695.08,2.73288498]
[1736645062331,1.07115927,696.63,695.08,2.73288498]
[1736645062528,0.2639942,696.62,695.08,2.73288498]
[1736645063434,0.2639942,696.62,694.94,2.73288498]
[1736645063628,1.07115927,696.64,694.94,2.73288498]
[1736645063830,0.26399173,696.63,694.94,2.73288498]
[1736645064733,1.07115927,696.65,694.94,2.73288498]